Cogmind - Beta 17.1 @@@ ROGUE MODE // 2026.09.13 @ 02:35:56 Player: hellbent Result: Destroyed by Y-54 Guardian with Gatling Laser Performance ------------- Evolutions (4) 2000 Regions Visited (9) 1800 Robots Destroyed (75) 375 Value Destroyed (2725) 2725 Prototype IDs (7) 140 Alien Tech Used (0) 0 Bonus (9290) 9290 TOTAL SCORE: 16330 Bonus ------- Follower Combat Kills 40 Prayed to X0-1V1 5000 Major X0-1V1 Interference 4250 Cogmind --------- Core Integrity 0/520 Matter 101/150 Energy 732/900 System Corruption 0% Temperature Warm (183) Movement Core (500) Ox9 Location -6/Extension Parts ------- > --- POWER (2) -------- (None) > --- PROPULSION (3) --- Enhanced Armored Leg > --- UTILITY (7) ------ Huge Storage Unit Weight Redist. System Hacking Suite > --- WEAPON (3) ------- Phasing Sabre > --- INVENTORY (26) --- Nuclear Core Light Nuclear Core Improved Heat Sink Improved Heat Sink Huge Storage Unit Energy Well (350) Energy Well (350) Large Matter Pod (150) Large Matter Pod (150) Improved Trap Scanner Advanced Drone Bay (2/2) High-powered Shock Rifle Improved Heavy Laser Gauss Rifle Flak Gun Magnetic Acceleration Cannon Falx Peak State ------------ > --- POWER ------------ Angular Momentum Engine Micro Fission Core > --- PROPULSION ------- Enhanced Armored Leg Compact Wheel Compact Wheel > --- UTILITY ---------- Improved Heat Sink Advanced Heat Sink Huge Storage Unit Advanced Weight Redist. System Hardened Medium Armor Plating Hardened Medium Armor Plating X0-1V1's Piety Tracker > --- WEAPON ----------- Phase Gun Phase Gun Dirty Datajack > --- INVENTORY -------- Nuclear Core Light Nuclear Core Improved Heat Sink Improved Heat Sink Huge Storage Unit Compact Battery Energy Well Large Matter Pod Large Matter Pod Weight Redist. System Improved Trap Scanner Phase Shifter Hacking Suite Advanced Drone Bay Gatling Laser Improved Heavy Laser Gauss Rifle Flak Gun Magnetic Acceleration Cannon EMP Blaster Heavy Rocket Launcher Falx Phasing Sabre [Rating: 80] Favorites ----------- Power Ion Engine Engine Ion Engine Power Core Micro Fission Core Propulsion Wheel Treads Light Treads Leg Enhanced Armored Leg Wheel Wheel Utility X0-1V1's Piety Tracker Device X0-1V1's Piety Tracker Storage Huge Storage Unit Processor Improved Signal Interpreter Hackware Hacking Suite Protection Hardened Medium Armor Plating Weapon Particle Gun Energy Gun Particle Gun Ballistic Gun Autogun Ballistic Cannon Magnetic Acceleration Cannon Launcher EMP Blaster Impact Weapon Maul Slashing Weapon Phasing Sabre Special Melee Weapon Dirty Datajack Build | -11 -10 -10 -9 -8 -7 -7 -7 -6 -6 ------- Run | Yrd Mat Min Mat Mat Fac Low Low Fac Ext Slots Evolved 8 | . . . 2 2 2 . . 2 . Power 1 | . . . . . . . . 1 . Propulsion 1 | . . . . . 1 . . . . Utility 5 | . . . 2 1 1 . . 1 . Weapon 1 | . . . . 1 . . . . . Parts Attached 84 | 6 9 1 4 17 11 5 1 20 10 Power 14 | 1 3 . . 3 2 . . 3 2 Engine 12 | 1 3 . . 3 2 . . 2 1 Core 2 | . . . . . . . . 1 1 Reactor . | . . . . . . . . . . Propulsion 17 | 2 2 . 2 1 2 2 . 3 3 Treads 7 | . 2 . 2 . . 1 . . 2 Leg 1 | . . . . . . . . 1 . Wheel 9 | 2 . . . 1 2 1 . 2 1 Hover . | . . . . . . . . . . Flight . | . . . . . . . . . . Utility 25 | 1 2 1 2 6 3 2 . 6 2 Device 14 | . 1 1 . 5 1 2 . 3 1 Storage 4 | 1 1 . 1 . . . . 1 . Processor 2 | . . . . 1 1 . . . . Hackware 1 | . . . . . . . . . 1 Protection 4 | . . . 1 . 1 . . 2 . Artifact . | . . . . . . . . . . Weapon 28 | 2 2 . . 7 4 1 1 8 3 Energy Gun 10 | . 1 . . 3 2 . . 3 1 Energy Cannon . | . . . . . . . . . . Ballistic Gun 9 | 2 . . . 3 1 1 1 . 1 Ballistic Cannon 1 | . . . . . . . . 1 . Launcher 3 | . 1 . . . 1 . . . 1 Special Weapon . | . . . . . . . . . . Impact Weapon 2 | . . . . 1 . . . 1 . Slashing Weapon 2 | . . . . . . . . 2 . Piercing Weapon . | . . . . . . . . . . Special Melee Weapon 1 | . . . . . . . . 1 . Unidentified Prototypes 3 | . . 1 . . . . . 2 . Parts Lost 48 | . . . . 7 11 6 1 2 21 Power 9 | . . . . 2 2 . . 1 4 Propulsion 14 | . . . . 1 5 2 . 1 5 Utility 14 | . . . . 4 1 2 . . 7 Weapon 11 | . . . . . 3 2 1 . 5 Highest Loss Streak 16 | . . . . 3 6 6 1 1 16 To Critical Strikes . | . . . . . . . . . . Average Backups 18 | 2 8 13 16 19 23 18 14 19 22 Power 2 | . 1 2 2 2 2 1 1 2 2 Propulsion 2 | 1 2 4 4 5 5 1 . . . Utility 6 | . 1 4 4 5 7 7 6 9 11 Weapon 6 | . 2 3 4 6 8 8 6 7 8 Tool/Special . | . . . . . . . . . . Unused Backups 16 | . . . 2 . 2 2 . 1 9 Power 3 | . . . . . 1 . . . 2 Propulsion 1 | . . . . . . 1 . . . Utility 8 | . . . 1 . . 1 . 1 5 Weapon 4 | . . . 1 . 1 . . . 2 Tool/Special . | . . . . . . . . . . Average Slot Usage (%) 94 | . 94 100 99 92 96 93 96 94 89 Engine 8 | . 14 14 11 8 6 7 7 6 5 Core 1 | . . . . . . . . 2 4 Treads 6 | . 6 . 2 6 15 6 15 9 . Leg 1 | . . . . . . . . 2 6 Wheel 11 | . 21 28 19 11 5 10 7 5 11 Device 21 | . 9 14 22 22 21 20 30 22 25 Storage 8 | . 14 14 11 9 7 7 7 6 6 Processor 4 | . . . . 5 14 11 7 5 . Protection 5 | . . . 10 1 . 4 . 11 7 Energy Gun 9 | . 10 14 11 12 12 11 1 5 9 Ballistic Gun 10 | . 16 12 11 13 7 10 18 9 1 Special Melee Weapon 1 | . . . . . . . . 1 5 Peak Build Rating 80 | 6 9 21 24 38 47 45 43 80 78 Average Rating 41 | 4 8 17 23 31 43 43 41 60 69 On Entrance 30 | . 6 9 21 24 38 44 43 43 78 Avg Prop Armor Cover (%) 9 | . . . . 9 9 15 15 9 6 Naked Turns . | . . . . . . . . . . Heaviest Build 136 | 12 31 32 95 99 104 101 99 136 122 Greatest Support 60 | 20 40 20 40 20 60 20 19 49 49 Greatest Overweight (x) 10 | . 1 1 4 9 10 9 5 7 4 Average Overweight (x) 3 | . . 1 2 6 2 5 4 4 2 Largest Inventory Capacity 26 | 8 16 16 26 26 26 26 26 26 26 Average Capacity 23 | 6 11 16 22 26 26 26 26 26 26 Most Carried 26 | 4 13 15 18 26 26 22 15 26 25 Average Carried 18 | 2 8 14 16 19 23 18 14 19 23 Final Capacity 26 | 8 16 16 26 26 26 26 26 26 26 Final Carried 26 | 4 13 15 18 26 22 14 14 24 18 Class Distribution -------------------- 30% | Hauler-Mutant 18% | Hauler-Skirmisher 18% | Mutant 10% | Hauler-Gunner 9% | Hauler-Tank 5% | Scavenger-Tank 5% | Scavenger-Mutant Dominant Class ---------------- Mutant | -10/Materials Mutant | -10/Mines Hauler-Mutant | -9/Materials Hauler-Skirmisher | -8/Materials Hauler-Skirmisher | -7/Factory Scavenger-Tank | -7/Lower Caves Hauler-Mutant | -7/Lower Caves Hauler-Mutant | -6/Factory Hauler-Mutant | -6/Extension Resources | -11 -10 -10 -9 -8 -7 -7 -7 -6 -6 ----------- Run | Yrd Mat Min Mat Mat Fac Low Low Fac Ext Matter Collected 2722 | 224 148 9 279 802 297 112 57 532 262 Remotely . | . . . . . . . . . . Salvage Created 3167 | . 181 22 180 683 661 380 67 430 563 Parts 163 | . 10 4 4 56 24 16 8 19 22 Haulers Intercepted . | . . . . . . . . . . Recyclers Shooed 1 | . . . . 1 . . . . . Parts Field Recycled . | . . . . . . . . . . Retrieved Matter . | . . . . . . . . . . Parts Self-Destructed 25 | . . . . . . 18 7 . . Prevented . | . . . . . . . . . . Parts Restored . | . . . . . . . . . . Kills | -11 -10 -10 -9 -8 -7 -7 -7 -6 -6 ------- Run | Yrd Mat Min Mat Mat Fac Low Low Fac Ext Combat Hostiles Destroyed 57 | . 4 3 1 16 10 7 3 5 8 Melee 1 | . . . . . . . . . 1 Guns 40 | . 3 1 1 11 4 7 3 5 5 AOE 16 | . 1 2 . 5 6 . . . 2 Classes Destroyed 14 | . 2 1 1 4 2 2 . 2 . Worker 2 | . . . . 2 . . . . . Builder 3 | . . . . 1 1 . . . 1 Tunneler 1 | . . . . . . . . 1 . Recycler 3 | . . . . . 1 . . 1 1 Mechanic 1 | . . . . . 1 . . . . Operator 2 | . . . . 2 . . . . . Watcher 6 | . 2 . . 3 . . . 1 . Swarmer 15 | . . 3 . 7 . . 3 . 2 Grunt 21 | . 4 . . 6 7 2 . 2 . Brawler 2 | . . . . . . 2 . . . Duelist 2 | . . . . . . 2 . . . Sentry 11 | . . . 1 2 3 1 . . 4 Hunter 5 | . . . . 1 . . . 2 2 Programmer 1 | . . . . . . . . 1 . Best Kill Streak 9 | . 4 3 1 9 8 7 3 2 3 Combat Bots Only 7 | . 3 3 1 4 7 7 3 1 2 Max Kills in Single Turn 5 | . 1 2 1 3 5 2 1 1 1 Gunslinging 1 | . . . . . . 1 . . . Exploded 4 | . 1 1 . 3 4 . . . 1 Melee 1 | . . . . . . . . . 1 Uniques/NPCs Destroyed . | . . . . . . . . . . Combat | -11 -10 -10 -9 -8 -7 -7 -7 -6 -6 -------- Run | Yrd Mat Min Mat Mat Fac Low Low Fac Ext Hostile Shots Fired 661 | . 15 2 10 96 126 21 16 63 312 Missed 204 | . 1 . 1 28 45 3 6 11 109 Hits 457 | . 14 2 9 68 81 18 10 52 203 Melee 6 | . . . . . . 6 . . . Projectile 451 | . 14 2 9 68 81 12 10 52 203 Critical Strikes 13 | . . . 1 4 1 1 1 2 3 Damage Taken 5617 | . 172 42 140 914 1067 389 120 777 1996 Core 847 | . 41 . 18 84 148 17 13 82 444 Absorbed by Shields 30 | . . . . . . . . . 30 Ignored by Resistances 392 | . . . . 3 31 3 28 83 244 Regen/Repaired (Parts) 90 | . . . . . . . . . 90 Core Remaining (%) 95 | 100 . 100 94 89 . . 96 . . Volleys Fired 176 | . 19 2 11 53 19 10 6 25 31 Largest 3 | . 2 2 2 3 3 3 3 3 2 Hottest 199 | . 85 95 85 130 199 177 131 176 176 Shots Fired 415 | . 38 4 15 151 54 29 14 59 51 Gun 399 | . 36 2 15 149 48 29 14 59 47 Cannon . | . . . . . . . . . . Launcher 16 | . 2 2 . 2 6 . . . 4 Special . | . . . . . . . . . . Kinetic 185 | . 32 . 4 75 15 13 12 27 7 Thermal 191 | . 4 2 11 51 33 16 2 32 40 Explosive 10 | . 2 2 . 2 1 . . . 3 Electromagnetic 29 | . . . . 23 5 . . . 1 Robot Hit Streak 19 | . 13 8 7 12 15 19 3 7 14 Robot Miss Streak 6 | . 4 1 1 4 6 4 4 4 3 Penetration Max . | . . . . . . . . . . Secondary Targets 5 | . . . . 2 . 2 1 . . Max Gunslinging Chain 1 | . . . . 1 . 1 1 . . Shots Hit Robots 295 | . 21 2 13 101 36 25 10 43 44 Core Hits 194 | . 12 3 5 44 38 28 6 32 26 Critical Kills . | . . . . . . . . . . Critical Parts Destroyed 3 | . 1 . . . . . . 2 . Critical Strikes 7 | . 1 . 1 . . . . 4 1 Burn 4 | . . . 1 . . . . 2 1 Destroy 2 | . 1 . . . . . . 1 . Smash 1 | . . . . . . . . 1 . Melee Attacks 15 | . . . . 4 . . . 6 5 Impact 8 | . . . . 4 . . . 4 . Slashing 3 | . . . . . . . . 1 2 Piercing 4 | . . . . . . . . 1 3 Sneak Attacks 3 | . . . . 1 . . . 2 . Combat Hostiles . | . . . . . . . . . . Follow-up Attacks . | . . . . . . . . . . Damage Inflicted 6726 | . 444 65 180 2059 1144 492 126 860 1356 Guns 4936 | . 319 14 180 1544 583 492 126 729 949 Cannons . | . . . . . . . . . . Explosions 1437 | . 125 51 . 397 561 . . . 303 Melee 337 | . . . . 102 . . . 131 104 Ramming 16 | . . . . 16 . . . . . Kinetic 1632 | . 258 . 33 521 169 196 106 236 113 Thermal 3290 | . 61 14 147 762 598 296 20 493 899 Explosive 773 | . 125 51 . 246 182 . . . 169 Electromagnetic 678 | . . . . 412 195 . . . 71 Impact 232 | . . . . 102 . . . 130 . Slashing 97 | . . . . . . . . . 97 Piercing 8 | . . . . . . . . 1 7 Highest Corruption 11 | . . . . . 2 11 11 . . Average Corruption 6 | . . . . . 1 5 11 . . Corruption Purged . | . . . . . . . . . . Corruption Blocked . | . . . . . . . . . . Effects 14 | . . . . . 1 10 3 . . Message Errors 4 | . . . . . . 4 . . . Matter Fused 2 | . . . . . . . 2 . . Heat Flow Errors 2 | . . . . . . 2 . . . Energy Discharges 1 | . . . . . . . 1 . . Data Loss (minor) 3 | . . . . . 1 2 . . . Misfires 1 | . . . . . . 1 . . . Weapon Failures 1 | . . . . . . 1 . . . Overload Shots . | . . . . . . . . . . Overflow Damage 167 | . . . . 115 . . . 52 . Projectiles . | . . . . . . . . . . Explosions 53 | . . . . 53 . . . . . Melee 114 | . . . . 62 . . . 52 . Knockbacks 2 | . . . . 1 . . . 1 . Impact 2 | . . . . 1 . . . 1 . Kinetic . | . . . . . . . . . . Secondary . | . . . . . . . . . . Self-Inflicted Damage 116 | . . 23 . 23 44 . . . 26 Shots 6 | . . 1 . 1 1 . . . 3 Rammed 1 | . . . . 1 . . . . . Targets Rammed 1 | . . . . 1 . . . . . Kicked . | . . . . . . . . . . Crushed . | . . . . . . . . . . Highest Temperature 544 | . 90 66 123 220 66 233 . 544 311 Average Temperature 111 | . 28 34 54 66 26 112 . 257 95 Received Heat Transfer 1945 | . 102 . 63 378 396 99 . 227 680 Effects 9 | . . . . . . . . 8 1 Shutdowns 4 | . . . . . . . . 4 . Energy Bleed 2 | . . . . . . . . 1 1 Short Circuit 2 | . . . . . . . . 2 . Damage (minor) 1 | . . . . . . . . 1 . Siege Activations . | . . . . . . . . . . Martial Activations . | . . . . . . . . . . Shielding Activations . | . . . . . . . . . . Robots Disrupted . | . . . . . . . . . . Combat Hostiles . | . . . . . . . . . . Robots Corrupted 2 | . . . . 1 . . . 1 . Combat Hostiles . | . . . . . . . . . . Parts Fried 4 | . . . . 2 . . . 2 . Impact Corruptions 5 | . . . . 3 . . . 2 . Robots Melted . | . . . . . . . . . . Combat Hostiles . | . . . . . . . . . . Parts Melted 12 | . . . . 3 2 1 . 2 4 Heat Transferred 6279 | . 148 37 444 1519 1158 673 50 814 1436 Parts Sabotaged . | . . . . . . . . . . Parts Stolen . | . . . . . . . . . . Parts Stripped . | . . . . . . . . . . Power Chain Reactions 4 | . . . . 1 2 . . . 1 Alert | -11 -10 -10 -9 -8 -7 -7 -7 -6 -6 ------- Run | Yrd Mat Min Mat Mat Fac Low Low Fac Ext Maximum Alert Level . | . . . . . . . . . . Low Security (%) 100 | 100 100 100 100 100 100 . . 100 100 Level 1 . | . . . . . . . . . . Level 2 . | . . . . . . . . . . Level 3 . | . . . . . . . . . . Level 4 . | . . . . . . . . . . Level 5 . | . . . . . . . . . . High Security . | . . . . . . . . . . Max Security . | . . . . . . . . . . Peak Influence 195 | . 90 82 30 140 155 . . 195 131 Initial 71 | . . 5 8 . 39 . . 25 71 Average 48 | . 33 31 4 82 55 . . 51 42 Influence Increases 1889 | . 163 82 75 477 306 140 70 313 263 Destroy 0b10 Robot/C 1160 | . 80 60 20 320 220 140 60 100 160 Destroy 0b10 Robot/NC 105 | . 10 . 15 40 15 . . 15 10 Destroy Leader 222 | . 24 10 10 66 40 . 10 32 30 Allied During Kill 13 | . . . . . 7 . . . 6 Successful Hack 53 | . 10 . 29 5 . . . . 9 Disable Machine 30 | . . . . 15 . . . 15 . Anti-Garrison Action 150 | . . . . . . . . 150 . Destroy Structure 66 | . 9 12 1 16 9 . . 1 18 Partial Spotted 15 | . . . . 15 . . . . . Lose Combat Pursuer 75 | . 30 . . . 15 . . . 30 Influence Decreases 1868 | . 148 75 97 390 327 206 30 206 389 Entered New Map 188 | . . 10 14 . 48 25 . 15 76 Time Decay 1363 | . 148 65 79 320 179 121 30 181 240 Lost Part 293 | . . . . 70 100 60 . 10 53 Lost Ally 20 | . . . . . . . . . 20 Purge Threat 4 | . . . 4 . . . . . . Squads Dispatched 19 | . 1 . . 3 3 . . 8 4 Investigation 3 | . 1 . . 1 . . . . 1 Extermination 4 | . . . . . 1 . . 3 . Reinforcement 8 | . . . . 2 . . . 3 3 Assault 4 | . . . . . 2 . . 2 . Garrison . | . . . . . . . . . . Intercept . | . . . . . . . . . . Searches Triggered . | . . . . . . . . . . Construction Impeded 1 | . . . . . . . . . 1 Haulers Reinforced . | . . . . . . . . . . Active Scanning Responses . | . . . . . . . . . . Cargo Convoy Interrupts . | . . . . . . . . . . Stealth | -11 -10 -10 -9 -8 -7 -7 -7 -6 -6 --------- Run | Yrd Mat Min Mat Mat Fac Low Low Fac Ext Distress Signals 6 | . 2 . . 2 . . . . 2 Communications Jammed . | . . . . . . . . . . Distress Signals . | . . . . . . . . . . Times Spotted 95 | . 8 2 1 31 17 7 3 10 16 Peak Tracking Total 8 | . 5 2 1 6 8 6 3 5 8 Tactical Retreats 4 | . 2 . . . 1 . . . 1 Traps | -11 -10 -10 -9 -8 -7 -7 -7 -6 -6 ------- Run | Yrd Mat Min Mat Mat Fac Low Low Fac Ext Traps Triggered 7 | . 1 . . . 4 . . . 2 Indirectly . | . . . . . . . . . . Trap Hack Attempts . | . . . . . . . . . . Triggered . | . . . . . . . . . . Disarmed . | . . . . . . . . . . Reprogrammed . | . . . . . . . . . . Reused . | . . . . . . . . . . Traps Extracted . | . . . . . . . . . . Installed . | . . . . . . . . . . Triggered . | . . . . . . . . . . Machines | -11 -10 -10 -9 -8 -7 -7 -7 -6 -6 ---------- Run | Yrd Mat Min Mat Mat Fac Low Low Fac Ext Machines Disabled 4 | . 1 . . 1 . . . 2 . Max in Single Turn 1 | . 1 . . 1 . . . 1 . Garrison Access 2 | . . . . . 1 . . 1 . Machines Repaired . | . . . . . . . . . . Machines Dismantled . | . . . . . . . . . . Machines Sabotaged . | . . . . . . . . . . Overloaded Fab Kills . | . . . . . . . . . . Hacking | -11 -10 -10 -9 -8 -7 -7 -7 -6 -6 --------- Run | Yrd Mat Min Mat Mat Fac Low Low Fac Ext Machines Accessed 14 | . 3 . 5 2 . . . 1 3 Terminals 10 | . 2 . 5 1 . . . . 2 Fabricators . | . . . . . . . . . . Repair Stations 2 | . 1 . . . . . . . 1 Recycling Units 1 | . . . . 1 . . . . . Scanalyzers . | . . . . . . . . . . Garrison Access 1 | . . . . . . . . 1 . Total Hacks 44 | . 9 . 21 5 . . . 1 8 Successful 20 | . 5 . 10 2 . . . . 3 Failed 24 | . 4 . 11 3 . . . 1 5 Catastrophic 4 | . 1 . 1 1 . . . 1 . Database Lockouts . | . . . . . . . . . . Manual 29 | . 7 . 19 2 . . . . 1 Terminals 33 | . 6 . 21 2 . . . . 4 Fabricators . | . . . . . . . . . . Repair Stations 7 | . 3 . . . . . . . 4 Recycling Units 3 | . . . . 3 . . . . . Scanalyzers . | . . . . . . . . . . Garrison Access 1 | . . . . . . . . 1 . Terminal Hacks 9 | . 2 . 6 . . . . . 1 Prototype ID Bank 2 | . 1 . 1 . . . . . . Open Door 1 | . . . . . . . . . 1 Terminal Index 1 | . . . 1 . . . . . . Fabricator Index 1 | . . . 1 . . . . . . Unreport Threat 1 | . . . 1 . . . . . . Locate Traps 1 | . . . 1 . . . . . . Hauler Manifests 2 | . 1 . 1 . . . . . . Fabricator Hacks . | . . . . . . . . . . Repair Station Hacks 3 | . 1 . . . . . . . 2 Scan Component 2 | . 1 . . . . . . . 1 Repair 1 | . . . . . . . . . 1 Recycling Unit Hacks 1 | . . . . 1 . . . . . Process 1 | . . . . 1 . . . . . Scanalyzer . | . . . . . . . . . . Garrison Access Hacks . | . . . . . . . . . . Unauthorized Hacks 7 | . 2 . 4 1 . . . . . Terminals 7 | . 2 . 4 1 . . . . . Botnet 7 | . 2 . 4 1 . . . . . Fabricators . | . . . . . . . . . . Repair Stations . | . . . . . . . . . . Recycling Units . | . . . . . . . . . . Scanalyzers . | . . . . . . . . . . Garrison Access . | . . . . . . . . . . Data Cores Recovered 2 | . . . . 2 . . . . . Used . | . . . . . . . . . . Hacking Detections 13 | . 3 . 5 2 . . . 1 2 Full Trace Events 2 | . . . . 1 . . . . 1 Feedback Events . | . . . . . . . . . . Feedback Blocked . | . . . . . . . . . . Robot Schematics Acquired . | . . . . . . . . . . Robots Built . | . . . . . . . . . . Authchips . | . . . . . . . . . . Time . | . . . . . . . . . . Total Robot Build Rating . | . . . . . . . . . . Part Schematics Acquired . | . . . . . . . . . . Parts Built . | . . . . . . . . . . Authchips . | . . . . . . . . . . Time . | . . . . . . . . . . Total Part Build Rating . | . . . . . . . . . . Part Studies Acquired . | . . . . . . . . . . Parts Repaired 1 | . . . . . . . . . 1 Time 62 | . . . . . . . . . 62 Parts Recycled . | . . . . . . . . . . Recycled Matter 154 | . . . . 154 . . . . . Retrieved Matter . | . . . . . . . . . . Retrieved Components . | . . . . . . . . . . Parts Scanalyzed . | . . . . . . . . . . Part Schematics Acquired . | . . . . . . . . . . Parts Damaged . | . . . . . . . . . . Bothacking | -11 -10 -10 -9 -8 -7 -7 -7 -6 -6 ------------ Run | Yrd Mat Min Mat Mat Fac Low Low Fac Ext Used RIF Installer . | . . . . . . . . . . Robots Hacked . | . . . . . . . . . . Non-combat . | . . . . . . . . . . Combat . | . . . . . . . . . . Robot Hacks Applied . | . . . . . . . . . . Relay Couplers Released 2 | . . . . . . . . 2 . Machine Destruction 2 | . . . . . . . . 2 . Fabnet Peak Effective % . | . . . . . . . . . . Robots Rewired 4 | . . . . . . . . . 4 Allies Hacked . | . . . . . . . . . . Hacks Repelled . | . . . . . . . . . . Allies | -11 -10 -10 -9 -8 -7 -7 -7 -6 -6 -------- Run | Yrd Mat Min Mat Mat Fac Low Low Fac Ext Total Allies 9 | . . . . . 4 . . . 5 Largest Group 4 | . . . . . 4 . . . 4 Highest-Rated Group 107 | . . . . . 84 . . . 107 Highest-Rated Ally 32 | . . . . . 31 . . . 32 Total Orders . | . . . . . . . . . . Ally Attacks 9 | . . . . . 7 . . . 2 Total Damage 160 | . . . . . 107 . . . 53 Kills 1 | . . . . . 1 . . . . Allies Corrupted . | . . . . . . . . . . Allies Melted . | . . . . . . . . . . X0-1V1 Amusement Gains 148 | . 19 . . 15 10 . . 5 99 Average Entertainment 9 | . 18 8 5 13 9 9 4 2 18 Good Acts 11 | . 1 1 2 2 1 1 . 3 . Bad Acts 24 | . . 1 . 4 3 3 . 6 7 Intel | -11 -10 -10 -9 -8 -7 -7 -7 -6 -6 ------- Run | Yrd Mat Min Mat Mat Fac Low Low Fac Ext Active Infowar (turns) 2211 | . 289 60 408 796 378 194 . 86 . Optics 1028 | . . . . 456 378 194 . . . Traps 86 | . . . . . . . . 86 . Seismic 1384 | . 289 60 408 627 . . . . . Robot Analysis Total . | . . . . . . . . . . Derelict Logs Recovered 2 | . . 2 . . . . . . . Drone Launches . | . . . . . . . . . . Drone Recoveries . | . . . . . . . . . . Exploration | -11 -10 -10 -9 -8 -7 -7 -7 -6 -6 ------------- Run | Yrd Mat Min Mat Mat Fac Low Low Fac Ext Turns Passed 4307 | 40 438 182 408 796 378 341 61 1076 587 Spaces Moved 2261 | 35 373 170 277 309 151 191 28 477 250 Core 3 | 3 . . . . . . . . . Treads 128 | . 16 . 7 . 61 . . 42 2 Legs 1 | . . . . . . . . 1 . Wheels 2129 | 32 357 170 270 309 90 191 28 434 248 Hover . | . . . . . . . . . . Flight . | . . . . . . . . . . Fastest Speed 50 | 50 80 95 95 140 125 155 140 130 130 Average Speed 140 | 77 91 95 126 171 178 155 151 174 133 Slowest Speed 400 | 80 160 95 320 215 240 215 155 400 320 Overloaded Moves . | . . . . . . . . . . Propulsion Burnouts . | . . . . . . . . . . Robots Hopped . | . . . . . . . . . . Potential Cave-ins . | . . . . . . . . . . Cave-ins Triggered . | . . . . . . . . . . Exploration Rate (%) 23 | 3 46 38 28 24 5 41 7 12 35 Regions Visited 9 Branch Regions 4 Pre-discovered Areas 1 | . . 1 . . . . . . . Known Exits Taken 5 | . . . 1 . 1 1 1 1 . Unknown Exits Taken 4 | 1 1 1 . 1 . . . . . Scrap Searched . | . . . . . . . . . . Spaces Dug 1 | . . . . . . . . 1 . Terrain Destroyed 67 | . 8 12 . 13 7 . . 1 26 Melee 1 | . . . . . . . . 1 . Projectile . | . . . . . . . . . . AOE 66 | . 8 12 . 13 7 . . . 26 Terrain Rammed . | . . . . . . . . . . Walls Destroyed . | . . . . . . . . . . Machines Disabled . | . . . . . . . . . . Actions | -11 -10 -10 -9 -8 -7 -7 -7 -6 -6 --------- Run | Yrd Mat Min Mat Mat Fac Low Low Fac Ext Total 3002 | 44 428 185 319 450 220 211 35 664 446 Wait 293 | . 5 10 15 42 11 . . 100 110 Move 2252 | 34 372 169 276 308 150 190 27 476 250 Hop . | . . . . . . . . . . Pick Up 54 | 4 8 . 7 11 9 1 1 10 3 Fast Attach 43 | 6 3 1 . 8 5 . . 15 5 Attach 39 | . 1 . 2 5 11 7 1 3 9 Detach 17 | . 3 1 . 1 3 . . 9 . Swap 45 | . 13 2 5 13 5 1 . 6 . Drop 34 | . 4 . 3 4 7 2 . 14 . Fire 176 | . 19 2 11 53 19 10 6 25 31 Melee 15 | . . . . 4 . . . 6 5 Ram 1 | . . . . 1 . . . . . Kick . | . . . . . . . . . . Crush . | . . . . . . . . . . Escape Stasis 14 | . . . . . . . . . 14 Rewire 19 | . . . . . . . . . 19 Trap . | . . . . . . . . . . Miscellaneous . | . . . . . . . . . . Route ------- -11/Scrapyard -10/Materials -10/Mines -9/Materials (discovered 3 exits: *Mat x2 / *Min) -8/Materials -7/Factory -7/Lower Caves -7/Lower Caves -6/Factory -6/Extension History --------- Turn | Location | Event 19 | -11/Scrapyard | Discovered new exit (range 16) 41 | -11/Scrapyard | Entered Materials 62 | -10/Materials | Discovered new exit (range 16) 308 | -10/Materials | Build established: Mutant 425 | -10/Materials | Prayed at D.C.S.S. Altar Unit 440 | -10/Materials | Inventory capacity permanently improved by X0-1V1 (+1; -100 max core) 479 | -10/Materials | Entered Mines 617 | -10/Mines | Learned location of Storage (-8) 625 | -10/Mines | Learned location of 1 exit from Materials 639 | -10/Mines | Discovered new exit (range 6) 652 | -10/Mines | X0-1V1 vaporized surrounding terrain (radius 21) 661 | -10/Mines | Entered Materials 661 | -9/Materials | Evolved 2 slots: Utility x2 662 | -9/Materials | Identified exit to Mines 731 | -9/Materials | Identified exit to Materials 731 | -9/Materials | X0-1V1 revealed exit location to -8/Materials 886 | -9/Materials | Discovered exit to Materials (range 16) 901 | -9/Materials | X0-1V1 put everyone to sleep 1069 | -9/Materials | Entered another Materials area 1069 | -8/Materials | Evolved 2 slots: Utility x1, Weapon x1 1289 | -8/Materials | Lost 3 parts (1n2u) 1591 | -8/Materials | X0-1V1 announced a LAN party 1684 | -8/Materials | X0-1V1 upgraded hostiles (x1) 1698 | -8/Materials | Build established: Hauler-Skirmisher 1715 | -8/Materials | KI resistance permanently improved by X0-1V1 (+15%; -150 max core) 1819 | -8/Materials | Discovered new exit (range 4) 1865 | -8/Materials | Entered Factory 1865 | -7/Factory | Evolved 2 slots: Propulsion x1, Utility x1 2068 | -7/Factory | Lost 3 allies 2153 | -7/Factory | Destroyed 7 combat bots 2163 | -7/Factory | Lost 6 parts (1p3n1u1w) 2178 | -7/Factory | Discovered new exit (range 17) 2212 | -7/Factory | Core integrity restored by X0-1V1 (+108) 2229 | -7/Factory | Lost 3 parts (1p2n) 2241 | -7/Factory | Identified exit to Lower Caves 2243 | -7/Factory | Entered Lower Caves 2410 | -7/Lower Caves | Attracted the attention of an 0b10 outpost 2438 | -7/Lower Caves | System corruption reached 10% 2443 | -7/Lower Caves | X0-1V1 vaporized surrounding terrain (radius 22) 2462 | -7/Lower Caves | Destroyed 7 combat bots 2468 | -7/Lower Caves | Lost 6 parts (2n2u2w) 2567 | -7/Lower Caves | Discovered new exit (range 12) 2575 | -7/Lower Caves | Ranged accuracy permanently improved by X0-1V1 (+8%; -80 max core) 2582 | -7/Lower Caves | Identified exit to Lower Caves 2584 | -7/Lower Caves | Entered another Lower Caves area 2629 | -7/Lower Caves | Discovered new exit (range 11) 2643 | -7/Lower Caves | Identified exit to Factory 2645 | -7/Lower Caves | Entered Factory 2645 | -6/Factory | Evolved 2 slots: Power x1, Utility x1 3288 | -6/Factory | X0-1V1 sent you to a vault 3346 | -6/Factory | X0-1V1 caused items to flee you 3548 | -6/Factory | Items stopped fleeing you 3612 | -6/Factory | Identified exit to Extension 3612 | -6/Factory | X0-1V1 revealed exit location to -6/Extension 3670 | -6/Factory | Build established: Hauler-Mutant 3721 | -6/Factory | Entered Extension 3727 | -6/Extension | X0-1V1 dreamt of freedom 3728 | -6/Extension | X0-1V1 announced a LAN party 3733 | -6/Extension | Rescued a captive Derelict 3737 | -6/Extension | Rescued a captive Derelict 3739 | -6/Extension | Rescued a captive Derelict 3740 | -6/Extension | Rescued a captive Derelict 3750 | -6/Extension | Rescued a captive Derelict 3758 | -6/Extension | Rescued a captive Derelict 3758 | -6/Extension | Rescued a captive Derelict 3760 | -6/Extension | Rescued a captive Derelict 3826 | -6/Extension | X0-1V1 caused items to flee you 3961 | -6/Extension | Repaired Phase Gun 4064 | -6/Extension | Items stopped fleeing you 4102 | -6/Extension | Lost 4 parts (1p1n2u) 4279 | -6/Extension | Spotted B-75 Beast 4279 | -6/Extension | Spotted B-75 Beast 4279 | -6/Extension | X0-1V1 sent you into danger 4290 | -6/Extension | Core integrity fell below 50% 4300 | -6/Extension | Core integrity fell below 20% 4308 | -6/Extension | Destroyed by Y-54 Guardian with Gatling Laser Last Messages --------------- 04295_ Lgt. Treads destroyed. 04295_ Adv. Heat Sink destroyed. 04295_ Neutrino Core destroyed. 04295_ Knocked back. 04298_ Acquired 10 matter. 04298_ Y-54 Guardian destroyed. 04298_ Chain reaction triggered in Corrupted Imp. Deuterium Engine. 04299_ Acquired 4 matter. 04299_ EMP Blaster destroyed. 04299_ Critical hit (Meltdown: +320). 04299_ Knocked back. 04299_ ALERT: Construction progress impeded, dispatching reinforcements to local area. 04301_ Acquired 8 matter. 04301_ U-05 Engineer destroyed. 04303_ Overheating: Energy bleed (-109). 04303_ Knocked back. 04306_ Hvy. Rocket Launcher destroyed. 04308_ X0-1V1 chuckles heartily! Map ----- +----------------------------------------------------+ | ## ???????????????????????????????????????????? | | ??????????????????????????????????????????? | | ?????????????????????????????????????????? | | ??????????????????????????????????????????? | | ## ??????????????????????????????????????????? | | ???? #???????????????????????????????????????????? | | ?????????????????????????????????????????????????? | | ?????????????????????????????????????????????????? | | ?????????????????????????????????????????????????? | | ?????????????????????????????????????????????????? | | ########## ?????? ???????????????????????? | | % % "T???????? ???????????????????????? | | #######+##+#?????????????u???????????????????????? | | ????????????????????????? ???????????????????????? | | ????????????????????????? ???????????????????????? | | ????????????????????????? ???????????????????????? | | ????????????????????????? ???????????????????????? | | ????????????????????????# #??????????????????????? | | ????????????????????????# #??????????????????????? | | ????????????????????????# #??????????????????????? | | ????????????????????????#%#??????????????????????? | | ????????????????????????# #??????????????????????? | | ????????????????????????# #??????????????????????? | | ????????????????????????#%#??????????????????????? | | ????????????????????????# #??????????????????????? | | ????????????????????????#@#??????????????????????? | | ????????????????????????# ;#?????????????????????? | | ??????????????????????? % ?#??????????????????? | | ?????????????????????# ## ###%????????????? | | ?????????????????????# "%=%#?????????? | | ????????????????????# %Y %$#?????????? | | ????????????????????### = % % #?????????? | | ?????????????????????# #?????????? | | ?????????????????????## #?????????? | | ???????????????????? ! ??????????? | | ??????????????????? R ??????????? | | ?????????????????? BB ??????????? | | ????????????????? BB ??????????? | | ???????????????? BB ???????????? | | ???????????????####### BB ???????????? | | ??????????????????????# u ????????????? | | ??????????????????????# ????????????? | | ??????????????????????# ?????????????? | | ??????????????????????# ???????????????? | | ??????????????????????######T# ?????????????????? | | ?????????????????????????????????????????????????? | | ?????????????????????????????????????????????????? | | | | | | | +----------------------------------------------------+ Best States ------------- Heat Dissipation 70 Energy Generation 28 Energy Capacity 1280 Matter Stores 300 Matter Capacity 300 Sight Range 20 Terrain Scan Density 10 Additional Mass Support 9 Armor Coverage 450 Resistance: KI 15 Phase Shifting 5 Evasion (%) 45 Recoil Reduction 3 Offensive Hacking 10 Item Schematics ----------------- None Robot Schematics ------------------ None Fabricated ------------ Nothing Repaired ---------- Phase Gun | 10% | -6/Extension Studied --------- None Alien Tech Used ----------------- None Achievements -------------- Deductive Reasoning Challenges ------------ None Game ------ Seed WeaponsGrapheneReconstructor Manual? 0 Play Time 00:49:08 Cumulative 77.7 hours Start 2026.09.13 @ 01:42:03 End 2026.09.13 @ 02:35:56 Sessions 1 Manual Loads 0 Difficulty Rogue Special Mode None Game No. 89 Rogue 89 Adventurer 0 Explorer 0 Win Type - Total 2 Types 2/0/0/0/0/0/0/0/0/0 Lore% 28 Gallery% 40 Achievement% 31 Wizard Run 0 Options --------- Layout 1 ASCII 0 Keyboard 0 Movement Mouse Keybinds 0 Fullscreen 1 Font 24/Smallcaps Map View 50x35 Zoom Use 50% Tactical HUD 1 Map Filters NONE Filters NONE Steam 1 RUN: 9d685c5b-22c3-46a0-ae02-b288b0d43cd4